bitfinex/quotes_BTCUSD_20241020
["timestamp","ask_amount","ask_price","bid_price","bid_amount"]
[1729382401487,0.000828,68360.0,68359.0,0.16819698]
[1729382401931,0.000828,68360.0,68359.0,0.16985298]
[1729382402625,0.000828,68360.0,68359.0,0.46964221]
[1729382403082,0.000828,68360.0,68359.0,0.42585298]
[1729382403277,0.000828,68360.0,68359.0,0.46964221]
[1729382404431,0.000828,68360.0,68359.0,0.71964221]
[1729382404641,0.000828,68360.0,68359.0,0.67585298]
[1729382405935,0.000828,68360.0,68359.0,0.67085298]
[1729382406375,0.000828,68360.0,68359.0,0.50812122]
[1729382406592,0.000828,68360.0,68359.0,0.25812122]
[1729382408668,0.000828,68360.0,68359.0,0.26312122]
[1729382411474,0.000828,68360.0,68359.0,0.43819328]
[1729382411683,0.000828,68360.0,68359.0,0.50186847]
[1729382412316,0.000828,68360.0,68359.0,0.51186847]
[1729382413814,0.000828,68360.0,68359.0,0.50186847]
[1729382414028,0.000828,68360.0,68359.0,0.51186847]
[1729382414893,0.000828,68360.0,68359.0,0.50186847]
[1729382415106,0.000828,68360.0,68359.0,0.51186847]
[1729382415310,0.000828,68360.0,68359.0,0.44622122]
[1729382415533,0.000828,68360.0,68359.0,0.45499242]
[1729382415757,0.000828,68360.0,68359.0,0.49874486]
[1729382416571,0.000828,68360.0,68359.0,0.45499242]
[1729382416784,0.000828,68360.0,68359.0,0.49874312]
[1729382417238,0.22022551,68373.0,68372.0,0.251]
[1729382417446,0.25584619,68373.0,68372.0,0.251]
[1729382417861,0.03562068,68373.0,68372.0,0.2652067]
[1729382420037,0.0981,68378.0,68377.0,0.001]
[1729382420251,0.19487482,68378.0,68377.0,0.001]
[1729382420459,0.20583514,68378.0,68377.0,0.001]
[1729382420667,0.26611546,68378.0,68377.0,0.01518811]
[1729382420900,0.26611546,68378.0,68377.0,0.001]
[1729382423670,0.2167952,68378.0,68377.0,0.001]
[1729382423885,0.26611272,68378.0,68377.0,0.001]
[1729382426464,0.26693972,68378.0,68377.0,0.001]
[1729382429094,0.32160949,68378.0,68377.0,0.001]
[1729382429316,0.31064917,68378.0,68377.0,0.001]
[1729382430883,0.2559794,68378.0,68377.0,0.001]
[1729382431107,0.24228357,68378.0,68377.0,0.001]
[1729382431360,0.24228468,68378.0,68377.0,0.001]
[1729382431574,0.25598552,68378.0,68377.0,0.001]
[1729382432223,0.25598559,68378.0,68377.0,0.001]
[1729382432445,0.14418475,68378.0,68377.0,0.001]
[1729382434115,0.15788463,68378.0,68377.0,0.001]
[1729382434426,0.14692126,68378.0,68377.0,0.001]
[1729382434651,0.15788112,68378.0,68377.0,0.001]
[1729382435586,0.14418124,68378.0,68377.0,0.001]
[1729382436450,0.15788113,68378.0,68377.0,0.001]
[1729382438047,0.15788623,68378.0,68377.0,0.001]
[1729382441489,0.13323626,68378.0,68377.0,0.001]
[1729382441707,0.15790625,68378.0,68377.0,0.001]
[1729382441951,0.15790626,68378.0,68377.0,0.001]
[1729382447963,0.15790848,68378.0,68377.0,0.001]
[1729382448679,0.12227282,68378.0,68377.0,0.001]
[1729382448896,0.15791067,68378.0,68377.0,0.001]
[1729382452180,0.15791117,68378.0,68377.0,0.001]
[1729382452623,0.15791147,68378.0,68377.0,0.001]
[1729382453275,0.14694593,68378.0,68377.0,0.001]
[1729382453554,0.15791159,68378.0,68377.0,0.001]
[1729382454208,0.21081956,68378.0,68377.0,0.001]
[1729382455620,0.15791159,68378.0,68377.0,0.001]
[1729382455825,0.15791294,68378.0,68377.0,0.001]
[1729382456318,0.15791294,68378.0,68377.0,0.01529471]
[1729382456520,0.15791294,68378.0,68377.0,0.001]
[1729382459387,0.12227518,68378.0,68377.0,0.001]
[1729382459601,0.15791572,68378.0,68377.0,0.001]
[1729382462284,0.15791655,68378.0,68377.0,0.001]
[1729382462775,0.20176652,68378.0,68377.0,0.001]
[1729382462981,0.15791655,68378.0,68377.0,0.001]
[1729382463436,0.14420802,68378.0,68377.0,0.001]
[1729382463681,0.14420802,68378.0,68377.0,0.01529242]
[1729382471808,0.14420609,68378.0,68377.0,0.10879242]
[1729382472037,0.13324185,68378.0,68377.0,0.10879242]
[1729382472726,0.11130952,68378.0,68377.0,0.10879242]
[1729382473709,0.1332364,68378.0,68377.0,0.10879242]
[1729382473926,0.14419998,68378.0,68377.0,0.10879242]
[1729382474421,0.1332364,68378.0,68377.0,0.10879242]
[1729382476452,0.14420002,68378.0,68377.0,0.10879242]
[1729382476935,0.14419709,68378.0,68377.0,0.10879242]
[1729382477368,0.13323352,68378.0,68377.0,0.10879242]
[1729382477828,0.14419724,68378.0,68377.0,0.10879242]
[1729382478093,0.13323352,68378.0,68377.0,0.10879242]
[1729382479718,0.11130632,68378.0,68377.0,0.10879242]
[1729382480883,0.13323395,68378.0,68377.0,0.10879242]
[1729382481761,0.11130632,68378.0,68377.0,0.10879242]
[1729382483829,0.13323514,68378.0,68377.0,0.10879242]
[1729382484776,0.11130632,68378.0,68377.0,0.10879242]
[1729382485740,0.12227167,68378.0,68377.0,0.10879242]
[1729382486178,0.12227167,68378.0,68377.0,0.11507245]
[1729382486890,0.14420274,68378.0,68377.0,0.11507245]
[1729382487141,0.1442029,68378.0,68377.0,0.02157245]
[1729382487571,0.14054673,68378.0,68377.0,0.02157245]
[1729382488219,0.12958525,68378.0,68377.0,0.02157245]
[1729382488446,0.14055128,68378.0,68377.0,0.02157245]
[1729382489806,0.11861922,68378.0,68377.0,0.02157245]
[1729382490669,0.14055231,68378.0,68377.0,0.02157245]
[1729382491789,0.11861922,68378.0,68377.0,0.02157245]
[1729382492012,0.11862036,68378.0,68377.0,0.02157245]
[1729382493803,0.14055545,68378.0,68377.0,0.02157245]
[1729382494667,0.15426491,68378.0,68377.0,0.02157245]
[1729382495132,0.15426491,68378.0,68377.0,0.00728003]
[1729382496003,0.15426415,68378.0,68377.0,0.00728003]
[1729382496692,0.15426415,68378.0,68377.0,0.00893403]
[1729382496693,0.14055545,68378.0,68377.0,0.00893403]
[1729382499506,0.14055214,68378.0,68377.0,0.02322302]
[1729382499727,0.14055214,68378.0,68377.0,0.00893403]
[1729382499948,0.14055214,68378.0,68377.0,0.02322302]
[1729382500171,0.14055214,68378.0,68377.0,0.00893403]
[1729382500421,0.14055214,68378.0,68377.0,0.02322302]
[1729382500647,0.14055214,68378.0,68377.0,0.00893403]
[1729382500865,0.14055214,68378.0,68377.0,0.02322302]
[1729382501101,0.14055214,68378.0,68377.0,0.00893403]
[1729382501353,0.14055214,68378.0,68377.0,0.02322302]
[1729382501569,0.14055214,68378.0,68377.0,0.00893403]
[1729382501787,0.14055214,68378.0,68377.0,0.02322302]
[1729382501788,0.11861967,68378.0,68377.0,0.02322302]
[1729382502022,0.11861967,68378.0,68377.0,0.00893403]
[1729382502240,0.11861967,68378.0,68377.0,0.02322302]
[1729382502701,0.15425969,68378.0,68377.0,0.02322302]
[1729382502936,0.14055199,68378.0,68377.0,0.02322302]
[1729382503834,0.15425958,68378.0,68377.0,0.02322302]
[1729382504545,0.14055199,68378.0,68377.0,0.02322302]
[1729382505479,0.15425945,68378.0,68377.0,0.02322302]
[1729382506827,0.14055199,68378.0,68377.0,0.02322302]
[1729382507273,0.14055003,68378.0,68377.0,0.02322302]
[1729382508832,0.14054975,68378.0,68377.0,0.02322302]
[1729382510365,0.14054975,68378.0,68377.0,0.10272302]
[1729382510642,0.10491132,68378.0,68377.0,0.10272302]
[1729382510875,0.12958385,68378.0,68377.0,0.10272302]
[1729382512453,0.14054938,68378.0,68377.0,0.10272302]
[1729382512891,0.14054938,68378.0,68377.0,0.09644299]
[1729382513361,0.12958385,68378.0,68377.0,0.09644299]
[1729382515575,0.10765265,68378.0,68377.0,0.09644299]
[1729382518074,0.10765127,68378.0,68377.0,0.09644299]
[1729382518578,0.10765119,68378.0,68377.0,0.09644299]
[1729382519470,0.10765054,68378.0,68377.0,0.09644299]
[1729382519713,0.10765054,68378.0,68377.0,0.01694299]
[1729382521088,0.09394565,68378.0,68377.0,0.01694299]
[1729382521313,0.10764984,68378.0,68377.0,0.01694299]
[1729382524056,0.09394565,68378.0,68377.0,0.01694299]
[1729382524285,0.10764872,68378.0,68377.0,0.01694299]
[1729382531185,0.09394565,68378.0,68377.0,0.01694299]
[1729382531426,0.10764821,68378.0,68377.0,0.01694299]
[1729382531928,0.09394565,68378.0,68377.0,0.01694299]
[1729382532162,0.1076484,68378.0,68377.0,0.01694299]
[1729382533361,0.11861155,68378.0,68377.0,0.01694299]
[1729382533577,0.1076484,68378.0,68377.0,0.01694299]
[1729382533790,0.1076484,68378.0,68377.0,0.002654]
[1729382538751,0.09394565,68378.0,68377.0,0.002654]
[1729382538971,0.10765206,68378.0,68377.0,0.002654]
[1729382543054,0.10765206,68378.0,68377.0,0.01693148]
[1729382543291,0.10765206,68378.0,68377.0,0.002654]
[1729382543505,0.10765206,68378.0,68377.0,0.01693148]
[1729382543728,0.10765206,68378.0,68377.0,0.002654]
[1729382543941,0.10765206,68378.0,68377.0,0.0169372]
[1729382544161,0.10765206,68378.0,68377.0,0.002654]
[1729382544421,0.10765206,68378.0,68377.0,0.0169372]
[1729382544646,0.10765206,68378.0,68377.0,0.002654]
[1729382544870,0.10765206,68378.0,68377.0,0.0169372]
[1729382544871,0.01453341,68378.0,68377.0,0.0169372]
[1729382545092,0.01453341,68378.0,68377.0,0.002654]
[1729382545318,0.01453341,68378.0,68377.0,0.0169372]
[1729382545534,0.01453341,68378.0,68377.0,0.002654]
[1729382545781,0.01453332,68378.0,68377.0,0.01693892]
[1729382546006,0.01453332,68378.0,68377.0,0.002654]
[1729382546231,0.01453332,68378.0,68377.0,0.01693974]
[1729382546450,0.01453332,68378.0,68377.0,0.002654]
[1729382546687,0.01453332,68378.0,68377.0,0.01694139]
[1729382546977,0.01453332,68378.0,68377.0,0.0169418]
[1729382547412,0.01453189,68378.0,68377.0,0.0169418]
[1729382548072,0.000827,68378.0,68377.0,0.0169418]
[1729382548941,0.01453108,68378.0,68377.0,0.0169418]
[1729382549178,0.000827,68378.0,68377.0,0.0169418]
[1729382550136,0.01453035,68378.0,68377.0,0.0169418]
[1729382550353,0.000827,68378.0,68377.0,0.02322183]
[1729382550569,0.0145301,68378.0,68377.0,0.02322183]
[1729382552372,0.01452951,68378.0,68377.0,0.02322183]
[1729382552806,0.01452951,68378.0,68377.0,0.02222183]
[1729382553040,0.01452944,68378.0,68377.0,0.02222183]
[1729382553256,0.01452944,68378.0,68377.0,0.02322183]
[1729382553474,0.000827,68378.0,68377.0,0.02322183]
[1729382554123,0.01452927,68378.0,68377.0,0.02322183]
[1729382554345,0.01452897,68378.0,68377.0,0.02322183]
[1729382555681,0.000827,68378.0,68377.0,0.02322183]
[1729382556155,0.01452887,68378.0,68377.0,0.02322183]
[1729382556368,0.000827,68378.0,68377.0,0.02322183]
[1729382557022,0.01452872,68378.0,68377.0,0.02322183]
[1729382557249,0.01452872,68378.0,68377.0,0.02222183]
[1729382557694,0.000827,68378.0,68377.0,0.02322183]
[1729382557905,0.000827,68378.0,68377.0,0.0169418]
[1729382560340,0.000827,68378.0,68377.0,0.01986646]
[1729382561445,0.000827,68378.0,68377.0,0.11756645]
[1729382561689,0.000827,68378.0,68377.0,0.11756637]
[1729382563758,0.000827,68378.0,68377.0,0.1146418]
[1729382566311,0.000827,68378.0,68377.0,0.1921418]
[1729382571439,0.000827,68378.0,68377.0,0.1971418]
[1729382580203,0.000827,68378.0,68377.0,0.1146418]
[1729382580444,0.000827,68378.0,68377.0,0.0169418]
[1729382581101,0.000827,68378.0,68377.0,0.1859418]
[1729382584364,0.01369579,68384.0,68383.0,0.25]
[1729382584607,0.000827,68386.0,68385.0,0.001]
[1729382584837,0.01452326,68386.0,68385.0,0.001]
[1729382585055,0.01452326,68386.0,68385.0,0.01521496]
[1729382585280,0.01452326,68386.0,68385.0,0.001]
[1729382585531,0.01452326,68386.0,68385.0,0.01521496]
[1729382585747,0.01452326,68386.0,68385.0,0.001]
[1729382585966,0.01452326,68386.0,68385.0,0.01521496]
[1729382586189,0.01452326,68386.0,68385.0,0.001]
[1729382586401,0.01452326,68386.0,68385.0,0.01521496]
[1729382586618,0.01452326,68386.0,68385.0,0.001]
[1729382586833,0.01452326,68386.0,68385.0,0.01521496]
[1729382587054,0.01452326,68386.0,68385.0,0.001]
[1729382587266,0.01452326,68386.0,68385.0,0.01521496]
[1729382587488,0.01452326,68386.0,68385.0,0.001]
[1729382587699,0.01452326,68386.0,68385.0,0.01521496]
[1729382587930,0.01452326,68386.0,68385.0,0.001]
[1729382588155,0.01452326,68386.0,68385.0,0.01521496]
[1729382591522,0.01452326,68386.0,68385.0,0.01813942]
[1729382591749,0.01452326,68386.0,68385.0,0.01521496]
[1729382596058,0.01453294,68386.0,68385.0,0.01521496]
[1729382603515,0.01453339,68386.0,68385.0,0.01521496]
[1729382603970,0.0145334,68386.0,68385.0,0.01521496]
[1729382611091,0.01453327,68386.0,68385.0,0.01521496]
[1729382614717,0.01453468,68386.0,68385.0,0.01521496]
[1729382619851,0.18913468,68386.0,68385.0,0.01421496]
[1729382620090,0.47384582,68386.0,68385.0,0.01421496]
[1729382620341,0.47384582,68386.0,68381.0,0.00545303]
[1729382620342,0.1746,68385.0,68381.0,0.00545303]
[1729382620588,0.21845671,68384.0,68381.0,0.00545303]
[1729382620824,0.21845671,68384.0,68382.0,0.01416946]
[1729382620825,0.20652354,68383.0,68382.0,0.01416946]
[1729382621056,0.30277175,68383.0,68382.0,0.01416946]
[1729382621292,0.25891522,68383.0,68381.0,0.00545303]
[1729382621511,0.01370768,68382.0,68381.0,0.00545303]
[1729382621733,0.16266683,68382.0,68381.0,0.00545303]
[1729382621962,0.16266683,68382.0,68381.0,0.01962146]
[1729382622184,0.16266683,68382.0,68381.0,0.02065772]
[1729382625632,0.14895915,68382.0,68381.0,0.02065772]
[1729382625851,0.16265021,68382.0,68381.0,0.02065772]
[1729382629430,0.16264688,68382.0,68381.0,0.02065772]
[1729382635758,0.16347388,68382.0,68381.0,0.01965772]
[1729382636207,0.16347388,68382.0,68381.0,0.02065772]
[1729382636915,0.16347194,68382.0,68381.0,0.02065772]
[1729382637148,0.16347194,68382.0,68381.0,0.01965772]
[1729382637599,0.16347194,68382.0,68381.0,0.02065772]
[1729382637812,0.16347194,68382.0,68381.0,0.01965772]
[1729382638266,0.15801891,68382.0,68381.0,0.01420469]
[1729382639994,0.15801891,68382.0,68381.0,0.01520469]
[1729382640434,0.14433312,68382.0,68381.0,0.01520469]
[1729382640706,0.15802097,68382.0,68381.0,0.01520469]
[1729382641644,0.15802097,68382.0,68381.0,0.01420469]
[1729382642136,0.15802097,68382.0,68381.0,0.01520469]
[1729382642794,0.14433312,68382.0,68381.0,0.01520469]
[1729382643010,0.15802272,68382.0,68381.0,0.01520469]
[1729382643462,0.0145166,68382.0,68381.0,0.01520469]
[1729382644661,0.0144166,68382.0,68381.0,0.01520469]
[1729382646517,0.01442236,68382.0,68381.0,0.01520469]
[1729382646746,0.000727,68382.0,68381.0,0.01520469]
[1729382646973,0.01442237,68382.0,68381.0,0.01520469]
[1729382647913,0.01442237,68382.0,68381.0,0.01685869]
[1729382653896,0.01442964,68382.0,68381.0,0.01585869]
[1729382654112,0.01442964,68382.0,68381.0,0.01685869]
[1729382664308,0.01442964,68382.0,68381.0,0.01585869]
[1729382664748,0.01442964,68382.0,68381.0,0.01685869]
[1729382668940,0.01443276,68382.0,68381.0,0.01685869]
[1729382672448,0.01443416,68382.0,68381.0,0.01685869]
[1729382679827,0.01443485,68382.0,68381.0,0.01685869]
[1729382680056,0.000727,68382.0,68381.0,0.01685869]
[1729382680279,0.01443481,68382.0,68381.0,0.01685869]
[1729382683508,0.01443564,68382.0,68381.0,0.01685869]
[1729382683735,0.01443564,68382.0,68381.0,0.11305869]
[1729382685116,0.000727,68382.0,68381.0,0.19235869]
[1729382687697,0.0144307,68382.0,68381.0,0.19235869]
[1729382688808,0.000727,68382.0,68381.0,0.19235869]
[1729382689934,0.01443003,68382.0,68381.0,0.19235869]
[1729382690395,0.000727,68382.0,68381.0,0.19235869]
[1729382691711,0.0144297,68382.0,68381.0,0.19235869]
[1729382691952,0.000727,68382.0,68381.0,0.19235869]
[1729382692184,0.01442957,68382.0,68381.0,0.19235869]
[1729382692429,0.000727,68382.0,68381.0,0.19235869]
[1729382693315,0.01442942,68382.0,68381.0,0.19235869]
[1729382699145,0.01442942,68382.0,68381.0,0.11305869]
[1729382699612,0.01432942,68382.0,68381.0,0.11305869]
[1729382701072,0.000627,68382.0,68381.0,0.11305869]
[1729382701308,0.01432987,68382.0,68381.0,0.11305869]
[1729382701566,0.01432966,68382.0,68381.0,0.11305869]
[1729382703431,0.01432966,68382.0,68381.0,0.01685869]
[1729382704020,0.0143304,68382.0,68381.0,0.01685869]
[1729382706824,0.000627,68382.0,68381.0,0.01685869]
[1729382707084,0.01433168,68382.0,68381.0,0.01685869]
[1729382707513,0.01433167,68382.0,68381.0,0.01685869]
[1729382711162,0.01433167,68382.0,68381.0,0.44865869]
[1729382711641,0.01433267,68382.0,68381.0,0.44865869]
[1729382713354,0.000627,68382.0,68381.0,0.44865869]
[1729382731829,0.000627,68382.0,68381.0,0.44284145]
[1729382734636,0.000627,68382.0,68381.0,0.26104145]
[1729382734856,0.000627,68382.0,68381.0,0.01104145]
[1729382744848,0.000627,68382.0,68381.0,0.43194145]
[1729382749844,0.000627,68382.0,68381.0,0.01004145]
[1729382750312,0.000627,68382.0,68381.0,0.01104145]
[1729382751610,0.000627,68382.0,68381.0,0.01004145]
[1729382751821,0.000627,68382.0,68381.0,0.01104145]
[1729382752706,0.000627,68382.0,68381.0,0.01004145]
[1729382753130,0.000627,68382.0,68381.0,0.01104145]
[1729382768039,0.000627,68382.0,68381.0,0.00827645]
[1729382776823,0.000627,68382.0,68381.0,0.00993045]
[1729382790198,0.000627,68382.0,68381.0,0.43855488]
[1729382790417,0.000627,68382.0,68381.0,0.43563045]
[1729382796219,0.000627,68382.0,68381.0,0.44063045]
[1729382796456,0.000627,68382.0,68381.0,0.68929839]
[1729382796710,0.000627,68382.0,68381.0,0.5995896]
[1729382798099,0.000627,68382.0,68381.0,0.6015896]
[1729382798578,0.000627,68382.0,68381.0,0.71106988]
[1729382799512,0.000627,68382.0,68381.0,0.68914877]
[1729382802209,0.000627,68382.0,68381.0,0.68910898]
[1729382802426,0.000627,68382.0,68381.0,0.6015896]
[1729382802879,0.000627,68382.0,68381.0,0.6672166]
[1729382803103,0.000627,68382.0,68381.0,0.6015896]
[1729382803328,0.000627,68382.0,68381.0,0.66720078]
[1729382805431,0.000627,68382.0,68381.0,0.6015896]
[1729382806384,0.000827,68386.0,68385.0,0.4446]
[1729382806640,0.000827,68386.0,68385.0,0.65912656]
[1729382806883,0.000827,68386.0,68385.0,0.60183334]
[1729382807141,0.000827,68386.0,68385.0,0.68927979]
[1729382807370,0.000827,68398.0,68397.0,0.266]
[1729382807598,0.000827,68398.0,68397.0,0.58975915]
[1729382807836,0.000827,68398.0,68397.0,0.59801073]
[1729382808294,0.14354982,68426.0,68397.0,0.59801073]
[1729382808295,0.22022551,68423.0,68411.0,0.266]
[1729382808525,0.22022551,68423.0,68411.0,0.53185915]
[1729382808765,0.22022551,68423.0,68411.0,0.50885915]
[1729382808998,0.22022551,68423.0,68411.0,0.51910233]
[1729382809254,0.01331018,68429.0,68424.0,0.506]
[1729382809480,0.01331018,68429.0,68424.0,0.501]
[1729382809713,0.01331018,68429.0,68424.0,0.50922906]
[1729382816936,0.01331018,68429.0,68424.0,0.50822906]
[1729382817168,0.01331018,68429.0,68424.0,0.50922906]
[1729382823381,0.01313718,68429.0,68424.0,0.50922906]
[1729382823603,0.01313718,68429.0,68424.0,0.50822906]
[1729382824489,0.01313718,68429.0,68428.0,0.001]
[1729382824950,0.01313718,68429.0,68428.0,0.00918613]
[1729382825183,0.01313718,68429.0,68428.0,0.001]
[1729382825622,0.01313718,68429.0,68428.0,0.00918613]
[1729382827711,0.01313718,68429.0,68428.0,0.00818613]
[1729382827944,0.01313718,68429.0,68428.0,0.00918613]
[1729382828181,0.01313718,68429.0,68424.0,0.5]
[1729382828182,0.01313718,68429.0,68427.0,0.001]
[1729382828410,0.01313718,68429.0,68428.0,0.00818613]
[1729382828861,0.01313718,68429.0,68428.0,0.00918613]
[1729382845110,0.01313718,68429.0,68428.0,0.01084013]
[1729382845812,0.000827,68430.0,68428.0,0.01084013]
[1729382846719,0.000827,68430.0,68429.0,0.001]
[1729382846981,0.09733722,68430.0,68429.0,0.001]
[1729382847197,0.09733722,68430.0,68429.0,0.00918729]
[1729382850981,0.09733722,68430.0,68429.0,0.00818729]
[1729382851646,0.09733722,68430.0,68428.0,0.001654]
[1729382852531,0.14105396,68430.0,68428.0,0.001654]
[1729382852743,0.14105396,68430.0,68429.0,0.00818729]
[1729382853392,0.16291233,68430.0,68429.0,0.00818729]
[1729382853851,0.09733722,68430.0,68429.0,0.00818729]
[1729382854566,0.16305895,68430.0,68429.0,0.00818729]
[1729382854780,0.25907376,68430.0,68429.0,0.00818729]
[1729382855184,0.09733722,68430.0,68429.0,0.00818729]
[1729382857508,0.14435815,68430.0,68429.0,0.00818729]
[1729382857741,0.14435815,68430.0,68429.0,0.00984129]
[1729382858211,0.69574262,68430.0,68429.0,0.00984129]
[1729382858458,0.65875936,68430.0,68429.0,0.00984129]
[1729382858689,0.65875936,68430.0,68429.0,0.001654]
[1729382860354,0.79012716,68430.0,68429.0,0.001654]
[1729382861267,0.65875936,68430.0,68429.0,0.001654]
[1729382861505,0.75349537,68430.0,68429.0,0.001654]
[1729382861729,0.88486317,68430.0,68429.0,0.001654]
[1729382862423,0.90962937,68430.0,68429.0,0.001654]
[1729382862656,0.016,68429.0,68428.0,0.0009967]
[1729382862878,0.94617801,68429.0,68428.0,0.0009967]
[1729382863107,1.0940519,68429.0,68428.0,0.0009967]
[1729382863334,0.94617801,68429.0,68428.0,0.0009967]
[1729382864036,1.0940519,68429.0,68428.0,0.0009967]
[1729382864550,0.94617801,68429.0,68428.0,0.0009967]
[1729382866144,0.94617801,68429.0,68412.0,0.22187951]
[1729382866145,0.005,68414.0,68412.0,0.22187951]
[1729382866379,0.39277912,68413.0,68412.0,0.22187951]
[1729382866612,0.44659054,68413.0,68412.0,0.22187951]
[1729382866847,0.44659054,68413.0,68412.0,0.001654]
[1729382867314,0.51715045,68413.0,68412.0,0.001654]
[1729382867532,0.58953948,68413.0,68412.0,0.001654]
[1729382867991,0.52397957,68413.0,68412.0,0.001654]
[1729382868218,0.56767203,68413.0,68412.0,0.001654]
[1729382870320,0.52397957,68413.0,68412.0,0.001654]
[1729382877013,0.26949054,68413.0,68412.0,0.001654]
[1729382886048,0.26949054,68413.0,68405.0,0.1761]
[1729382886334,0.26949054,68413.0,68405.0,0.1771]
[1729382886335,0.17195915,68413.0,68405.0,0.1771]
[1729382886783,0.17195915,68413.0,68406.0,0.00781739]
[1729382887005,0.14895915,68413.0,68406.0,0.00881739]
[1729382887267,0.14895915,68413.0,68406.0,0.00781739]
[1729382890402,0.18317507,68413.0,68406.0,0.00781739]
[1729382892709,0.18317507,68413.0,68406.0,0.00947139]
[1729382896456,0.0456376,68412.0,68406.0,0.00947139]
[1729382896698,0.24445915,68411.0,68406.0,0.00947139]
[1729382898615,0.04566354,68410.0,68406.0,0.00947139]
[1729382898847,0.1862617,68409.0,68406.0,0.00947139]
[1729382902172,0.1862617,68409.0,68407.0,0.00741834]
[1729382902640,0.22994857,68409.0,68402.0,0.001]
[1729382902926,0.1862617,68409.0,68401.0,0.0996]
[1729382903166,0.1862617,68409.0,68403.0,0.00742096]
[1729382903398,0.04368687,68408.0,68402.0,0.00742138]
[1729382903629,0.19264602,68408.0,68404.0,0.00742054]
[1729382903893,0.19264602,68408.0,68403.0,0.00741997]
[1729382904169,0.19264602,68408.0,68405.0,0.0074185]
[1729382904379,0.04368687,68406.0,68404.0,0.00741861]
[1729382904618,0.04368687,68406.0,68401.0,0.1006]
[1729382905093,0.04368687,68407.0,68401.0,0.102256]
[1729382905325,0.04368687,68405.0,68401.0,0.102256]
[1729382907286,0.04368687,68404.0,68401.0,0.102256]
[1729382907994,0.04368687,68404.0,68403.0,0.001]
[1729382908259,0.14324745,68404.0,68403.0,0.001]
[1729382908518,0.09956058,68404.0,68403.0,0.001]
[1729382908745,0.16509089,68404.0,68403.0,0.001]
[1729382909673,0.16509089,68404.0,68403.0,0.00842069]
[1729382909902,0.16509089,68404.0,68403.0,0.001]
[1729382909903,0.14339806,68404.0,68403.0,0.001]
[1729382910148,0.16509089,68404.0,68403.0,0.00842069]
[1729382910396,0.16509089,68404.0,68403.0,0.001]
[1729382910861,0.16509089,68404.0,68403.0,0.00842069]
[1729382910866,0.09956058,68404.0,68403.0,0.001]
[1729382911115,0.14339985,68404.0,68403.0,0.001]
[1729382911352,0.14339985,68404.0,68403.0,0.00842069]
[1729382911583,0.14339985,68404.0,68403.0,0.001]
[1729382911813,0.09956058,68404.0,68403.0,0.00842069]
[1729382912050,0.06576363,68405.0,68404.0,0.001]
[1729382912288,0.0954566,68405.0,68404.0,0.001]
[1729382912534,0.16122023,68405.0,68404.0,0.00842217]
[1729382913026,0.0954566,68405.0,68404.0,0.00842217]
[1729382913259,0.09716309,68405.0,68404.0,0.00842217]
[1729382913974,0.16292672,68405.0,68404.0,0.00842217]
[1729382914452,0.16292734,68405.0,68404.0,0.00842217]
[1729382914946,0.09716309,68405.0,68404.0,0.00842217]
[1729382915652,0.16292734,68405.0,68404.0,0.00842217]
[1729382916123,0.09716309,68405.0,68404.0,0.00842217]
[1729382916837,0.16292836,68405.0,68404.0,0.00842217]
[1729382917751,0.09716309,68405.0,68404.0,0.00842217]
[1729382917980,0.16292836,68405.0,68404.0,0.00842217]
[1729382918718,0.09716309,68405.0,68404.0,0.00842217]
[1729382918955,0.16292971,68405.0,68404.0,0.00842217]
[1729382919191,0.09716309,68405.0,68404.0,0.00842217]
[1729382919422,0.16292971,68405.0,68404.0,0.00842217]
[1729382920068,0.09716309,68405.0,68404.0,0.00842217]
[1729382920291,0.16292971,68405.0,68404.0,0.00842217]
[1729382920749,0.09716309,68405.0,68404.0,0.00842217]
[1729382920969,0.06576802,68405.0,68404.0,0.00842217]
[1729382921185,0.06659602,68406.0,68404.0,0.00842217]
[1729382921859,0.04384424,68405.0,68404.0,0.00842217]
[1729382922080,0.06659602,68406.0,68404.0,0.00842217]
[1729382923195,0.04384425,68405.0,68404.0,0.00842217]
[1729382923416,0.06659602,68406.0,68404.0,0.00842217]
[1729382923865,0.06576802,68405.0,68404.0,0.00842217]
[1729382924077,0.06576719,68405.0,68404.0,0.00842217]
[1729382924505,0.09992796,68405.0,68404.0,0.00842217]
[1729382924722,0.16569586,68405.0,68404.0,0.00842217]
[1729382924951,0.09992796,68405.0,68404.0,0.00842217]
[1729382925584,0.26177928,68405.0,68404.0,0.00842217]
[1729382926287,0.26177928,68405.0,68404.0,0.00742217]
[1729382926726,0.41035254,68405.0,68404.0,0.00742217]
[1729382927155,0.41035254,68405.0,68403.0,0.001656]
[1729382927374,0.06576908,68404.0,68403.0,0.001656]
[1729382927602,0.1619495,68404.0,68403.0,0.001656]
[1729382931142,0.1619495,68404.0,68401.0,0.101256]
[1729382931358,0.08851503,68406.0,68401.0,0.101256]
[1729382931600,0.04384576,68402.0,68401.0,0.001656]
[1729382934891,0.08951651,68402.0,68401.0,0.001656]
[1729382936256,0.04384576,68402.0,68401.0,0.001656]
[1729382936496,0.04384576,68402.0,68401.0,0.00870895]
[1729382940974,0.04384576,68403.0,68401.0,0.18210895]
[1729382942509,0.04384576,68403.0,68402.0,0.001]
[1729382942973,0.04384576,68403.0,68402.0,0.00806055]
[1729382944314,0.04384576,68403.0,68402.0,0.00706055]
[1729382944559,0.06576865,68404.0,68402.0,0.00706055]
[1729382944813,0.04384595,68403.0,68402.0,0.00806055]
[1729382945699,0.06576865,68404.0,68402.0,0.00806055]
[1729382945959,0.04384593,68403.0,68402.0,0.00806055]
[1729382946636,0.06576865,68404.0,68403.0,0.001]
[1729382947088,0.06576865,68404.0,68403.0,0.00806013]
[1729382947342,0.1627153,68405.0,68403.0,0.00806013]
[1729382947557,0.06576865,68405.0,68404.0,0.001]
[1729382947782,0.1627153,68405.0,68404.0,0.00805971]
[1729382948223,0.1627153,68405.0,68404.0,0.00705971]
[1729382948477,0.19880023,68405.0,68404.0,0.00705971]
[1729382949545,0.1987995,68405.0,68404.0,0.00705971]
[1729382949810,0.13303158,68405.0,68404.0,0.00705971]
[1729382950518,0.09694665,68405.0,68404.0,0.00705971]
[1729382950747,0.25880227,68405.0,68404.0,0.00705971]
[1729382950971,0.34649284,68405.0,68404.0,0.00705971]
[1729382951202,0.25880227,68405.0,68404.0,0.00705971]
[1729382951425,0.34649348,68405.0,68404.0,0.00705971]
[1729382952632,0.09777465,68405.0,68404.0,0.00705971]
[1729382952841,0.16354529,68405.0,68404.0,0.00805971]
[1729382953076,0.09777465,68405.0,68404.0,0.00705971]
[1729382953753,0.16354644,68405.0,68404.0,0.00705971]
[1729382954004,0.16354629,68405.0,68404.0,0.00705971]
[1729382954454,0.19971378,68405.0,68404.0,0.00705971]